bitfinex/quotes_ETHUSD_20251213
["timestamp","ask_amount","ask_price","bid_price","bid_amount"]
[1765626034504,0.78694271,3123.5,3123.4,3.69033923]
[1765626035109,0.78694271,3123.5,3123.4,0.4887]
[1765626035299,1.28274271,3123.5,3123.0,3.20202273]
[1765626035475,0.88948987,3123.4,3123.0,4.16362745]
[1765626035804,0.4877,3123.1,3123.0,3.20202273]
[1765626036006,0.78694271,3123.1,3123.0,3.20202273]
[1765626036204,1.28274271,3123.1,3123.0,3.20202273]
[1765626036503,0.29924271,3123.1,3123.0,5.1688952]
[1765626037097,0.4958,3123.6,3123.0,8.37094451]
[1765626037321,0.29885043,3123.5,3123.0,8.37094451]
[1765626037617,0.4958,3123.6,3123.0,8.37094451]
[1765626037618,0.29885043,3123.4,3123.0,7.78069735]
[1765626037923,0.29885043,3123.3,3123.1,0.505]
[1765626038214,0.29885043,3123.2,3123.1,0.505]
[1765626038384,0.29885043,3123.2,3123.1,3.70694678]
[1765626038587,0.29885043,3123.2,3123.1,4.00464678]
[1765626038786,0.29885043,3123.2,3123.1,4.53943318]
[1765626040720,0.29885043,3123.2,3123.1,4.83713318]
[1765626044723,0.29885043,3123.2,3123.1,4.53943318]
[1765626044926,0.1989,3123.9,3123.2,0.58047529]
[1765626045095,0.29878672,3123.8,3123.3,0.2977]
[1765626045296,0.29878672,3123.7,3123.3,1.37662531]
[1765626045525,0.29878672,3123.6,3123.4,0.6947]
[1765626045730,0.29878672,3123.5,3123.4,0.6947]
[1765626046296,0.29878672,3123.5,3123.4,0.9924]
[1765626046929,0.29878672,3123.5,3123.4,4.19403923]
[1765626047114,0.29878672,3123.5,3123.4,4.72882563]
[1765626049026,1.28228672,3123.5,3123.4,0.6947]
[1765626049411,1.28228672,3123.5,3123.3,3.20168602]
[1765626049616,1.28228672,3123.4,3123.3,4.16325684]
[1765626051329,1.28228672,3123.4,3123.3,0.96157082]
[1765626051998,1.28228672,3123.4,3123.3,4.16331256]
[1765626054728,0.29878672,3123.4,3123.3,4.46101256]
[1765626054903,0.29878672,3123.4,3123.3,5.52500677]
[1765626056820,0.29878672,3123.4,3123.3,5.22730677]
[1765626060620,0.29878672,3123.4,3123.3,5.52500677]
[1765626064848,0.29878672,3123.4,3123.3,5.22730677]
[1765626070338,0.29878672,3123.4,3123.3,4.46101256]
[1765626072431,0.29878672,3123.4,3123.3,4.16331256]
[1765626072631,0.75458672,3123.4,3123.3,4.16331256]
[1765626075849,0.29878672,3123.4,3123.3,4.16331256]
[1765626076875,0.75458672,3123.4,3123.3,4.16331256]
[1765626077343,1.24348672,3123.4,3123.3,4.16331256]
[1765626079545,0.75458672,3123.4,3123.3,4.16331256]
[1765626081285,0.29878672,3123.4,3123.3,4.16331256]
[1765626087184,0.29935314,3123.4,3123.3,4.16331256]
[1765626089981,0.29935314,3123.4,3123.3,4.46101256]
[1765626091353,0.29935314,3123.4,3123.3,5.3075682]
[1765626093381,0.29935314,3123.4,3123.3,5.6052682]
[1765626094279,0.29935314,3123.4,3123.3,5.3075682]
[1765626094280,0.29935566,3123.4,3123.3,5.3075682]
[1765626095383,0.29935566,3123.4,3123.3,5.0098682]
[1765626095589,0.75205566,3123.4,3123.3,5.0098682]
[1765626095778,0.75205566,3123.4,3123.3,4.16331256]
[1765626097088,1.20555566,3123.4,3123.3,3.20174174]
[1765626099702,0.29935566,3123.4,3123.3,3.49944174]
[1765626099882,0.29935566,3123.4,3123.3,8.38690138]
[1765626100189,0.29935566,3123.4,3123.3,9.64604893]
[1765626100916,0.6457,3124.1,3123.4,0.58047529]
[1765626101113,0.29932616,3124.0,3123.8,4.30698435]
[1765626101263,0.29932616,3123.9,3123.8,4.30698435]
[1765626101774,0.29932616,3123.9,3123.8,8.15391362]
[1765626102964,0.75202616,3123.9,3123.8,8.15391362]
[1765626104677,1.20552616,3123.9,3123.8,0.6457]
[1765626105604,1.20552616,3123.9,3123.6,0.505]
[1765626105799,1.20552616,3123.9,3123.2,4.30698435]
[1765626105800,0.4527,3123.7,3123.4,3.20157979]
[1765626106097,0.4535,3123.8,3123.6,0.96148453]
[1765626106268,0.75257758,3123.7,3123.6,0.96148453]
[1765626106469,1.20527758,3123.7,3123.6,0.96148453]
[1765626111087,1.20527758,3123.7,3123.6,4.16291877]
[1765626111496,1.20527758,3123.7,3123.6,0.96148453]
[1765626116121,1.20527758,3123.7,3123.4,3.20160458]
[1765626116305,0.4532,3123.5,3123.4,3.20160458]
[1765626116617,0.75227758,3123.5,3123.4,3.20160458]
[1765626116813,1.24667758,3123.5,3123.4,4.163123]
[1765626118911,1.2466773,3123.5,3123.4,4.163123]
[1765626120610,1.2466773,3123.5,3123.4,0.96151842]
[1765626120986,1.2466773,3123.5,3123.4,4.16315765]
[1765626123009,1.2466773,3123.5,3123.4,0.96151842]
[1765626126409,1.2466773,3123.5,3122.7,4.30655594]
[1765626126610,1.2466773,3123.4,3122.8,0.58047529]
[1765626126809,0.2990773,3123.3,3123.0,3.20200803]
[1765626127017,0.7990773,3123.2,3122.9,3.20212407]
[1765626127220,0.2990773,3123.1,3123.0,3.20204931]
[1765626127695,0.7522773,3123.1,3123.0,3.20204931]
[1765626128814,0.2990773,3123.1,3123.0,3.20204931]
[1765626129114,1.2466773,3123.1,3122.4,0.002]
[1765626129287,0.7522773,3123.0,3122.4,3.20459201]
[1765626129489,0.2990773,3122.9,3122.4,3.20459201]
[1765626129784,0.2990773,3122.8,3122.4,6.40725662]
[1765626130121,0.4532,3122.5,3122.4,3.20459201]
[1765626130582,0.9476,3122.5,3122.4,3.20459201]
[1765626130785,0.4532,3122.5,3122.4,3.89689201]
[1765626131485,0.4532,3122.5,3121.9,3.20314099]
[1765626131486,1.7509292,3122.5,3121.4,3.20568076]
[1765626131706,0.47342212,3122.4,3121.8,3.20525685]
[1765626132013,0.2983292,3122.3,3121.8,3.20525685]
[1765626132220,0.6511,3121.9,3121.8,0.002]
[1765626132393,0.9494292,3121.9,3121.8,0.002]
[1765626132602,0.94900484,3121.9,3121.8,0.002]
[1765626133418,0.6511,3121.9,3121.8,0.002]
[1765626134508,0.4944,3122.2,3121.8,0.2997]
[1765626134716,0.29747041,3122.1,3121.8,0.2997]
[1765626134997,0.29747041,3122.1,3121.8,0.002]
[1765626134998,0.6511,3121.9,3121.8,0.002]
[1765626135414,3.20277081,3122.3,3121.8,0.002]
[1765626135624,0.6511,3121.9,3121.8,0.002]
[1765626136121,1.1455,3121.9,3121.8,0.002]
[1765626137020,1.27379374,3121.9,3121.8,0.002]
[1765626137402,1.1455,3121.9,3121.8,0.002]
[1765626138429,4.64565182,3121.9,3121.8,0.002]
[1765626138806,1.94747427,3121.9,3121.8,0.002]
[1765626139001,5.15065182,3121.9,3121.8,0.002]
[1765626139328,5.14565182,3121.9,3121.8,0.002]
[1765626140232,9.85771176,3121.9,3121.8,0.002]
[1765626140409,9.45220776,3121.9,3121.8,0.002]
[1765626140616,5.65065182,3121.9,3121.8,0.002]
[1765626141504,1.94247427,3121.9,3121.8,0.002]
[1765626142103,5.14565182,3121.9,3121.8,0.002]
[1765626142535,5.27395255,3121.9,3121.8,0.002]
[1765626146449,9.58748055,3121.9,3121.8,0.002]
[1765626147338,10.91702845,3121.9,3121.8,0.002]
[1765626148413,13.625806,3121.9,3121.0,3.16210124]
[1765626148613,1.26287427,3121.8,3121.0,3.16210124]
[1765626148842,0.29697427,3121.7,3121.0,3.16210124]
[1765626149027,1.26857427,3121.7,3121.0,3.16210124]
[1765626149231,0.27123459,3121.6,3120.8,0.2977]
[1765626149437,0.73783459,3121.6,3120.8,3.204221]
[1765626149641,0.73783459,3121.6,3120.9,3.20418172]
[1765626149942,0.4666,3121.5,3120.9,3.20418172]
[1765626150443,3.67022334,3121.5,3120.8,0.58047529]
[1765626150813,0.4666,3121.4,3120.8,0.58047529]
[1765626152539,0.4666,3121.4,3120.9,3.20420391]
[1765626153168,3.47472601,3121.6,3120.9,0.2977]
[1765626153441,0.76317869,3121.5,3120.9,0.2977]
[1765626153739,0.76317869,3121.5,3120.8,3.20428939]
[1765626153931,0.4666,3121.4,3120.8,3.20428939]
[1765626154841,0.4666,3121.4,3120.7,3.2044059]
[1765626155240,0.4993,3120.8,3120.6,3.2044957]
[1765626155441,0.29684154,3121.3,3120.6,6.91400765]
[1765626155737,0.29684154,3121.2,3120.6,6.91400765]
[1765626155936,0.4666,3121.3,3120.6,7.69342594]
[1765626156141,0.76363771,3121.2,3120.6,7.69342594]
[1765626156341,0.29720699,3121.1,3120.6,7.69342594]
[1765626156543,0.4666,3121.2,3120.6,7.99112594]
[1765626156716,0.29720921,3121.1,3120.6,7.99112594]
[1765626156912,0.4666,3121.2,3120.6,7.99112594]
[1765626157128,0.4666,3121.5,3121.1,0.2977]
[1765626157328,0.29720722,3121.4,3121.1,0.2977]
[1765626157528,0.29720722,3121.3,3121.1,0.2977]
[1765626157742,0.29720722,3121.2,3121.1,0.2977]
[1765626158150,0.79720722,3121.2,3121.1,0.2977]
[1765626158449,0.79650722,3121.2,3120.7,0.2977]
[1765626158632,0.29720722,3121.1,3120.7,0.2977]
[1765626158837,0.29720722,3121.0,3120.8,3.20430658]
[1765626159043,0.4666,3121.2,3120.8,3.20430658]
[1765626159215,0.29765106,3121.1,3120.8,3.20430658]
[1765626159548,0.29765106,3121.0,3120.8,3.20430658]
[1765626159751,0.29765106,3120.9,3120.8,3.20430658]
[1765626160116,0.29765106,3120.9,3120.8,3.79970658]
[1765626163953,0.29765106,3120.9,3120.8,3.50200658]
[1765626164154,0.29765106,3120.9,3120.8,3.79970658]
[1765626164851,0.29765106,3120.9,3120.8,3.50200658]
[1765626166225,1.26355106,3120.9,3120.7,3.20440703]
[1765626166428,0.79315106,3120.8,3120.7,3.20440703]
[1765626166623,1.25975106,3120.8,3120.7,3.20440703]
[1765626167131,1.25975106,3120.8,3120.6,3.20448326]
[1765626167362,0.29765106,3120.7,3120.6,3.20448326]
[1765626168445,1.26355106,3120.7,3120.6,3.20448326]
[1765626168764,4.46796646,3120.7,3120.5,0.002]
[1765626169063,1.69984771,3120.6,3120.5,0.002]
[1765626169264,2.19984771,3120.6,3120.5,0.002]
[1765626173455,5.40435966,3120.6,3120.5,0.002]
[1765626173642,2.19984771,3120.6,3120.5,0.002]
[1765626174858,1.24444771,3120.6,3120.5,0.2997]
[1765626175062,0.79765106,3120.6,3120.5,0.2997]
[1765626176467,1.26975106,3120.6,3120.5,0.002]
[1765626176779,1.76825106,3120.6,3120.5,0.002]
[1765626178082,1.26975106,3120.6,3120.5,0.002]
[1765626178878,0.79765106,3120.6,3120.5,0.2997]
[1765626179561,0.79765106,3120.6,3120.5,0.5974]
[1765626180847,0.79765106,3120.6,3120.5,3.80201464]
[1765626181052,0.4985,3121.3,3120.5,8.0277745]
[1765626181245,0.29781853,3121.2,3120.6,0.2977]
[1765626181440,0.29781853,3121.1,3120.6,0.2977]
[1765626181679,0.29781853,3121.0,3120.6,0.2977]
[1765626181877,0.29781853,3120.9,3120.6,0.2977]
[1765626182195,0.29781853,3120.8,3120.6,0.2977]
[1765626182482,0.4985,3121.3,3120.6,0.2977]
[1765626182773,0.2978628,3121.2,3120.7,0.2977]
[1765626182976,0.2978628,3121.1,3120.8,3.20430658]
[1765626183209,0.2978628,3121.0,3120.8,3.50200658]
[1765626183478,0.2978628,3120.9,3120.8,3.50200658]
[1765626184169,0.2978628,3120.9,3120.8,3.79970658]
[1765626184977,0.2978628,3120.9,3120.8,3.50200658]
[1765626186565,0.2978628,3120.9,3120.8,3.79970658]
[1765626186877,0.4985,3121.5,3120.8,7.75502495]
[1765626187096,0.29796572,3121.4,3120.8,7.00401316]
[1765626187270,0.29796572,3121.3,3120.8,7.00401316]
[1765626187472,0.29796572,3121.2,3120.8,7.00401316]
[1765626187674,0.29796572,3121.1,3120.8,7.00401316]
[1765626187874,0.79796572,3121.0,3120.8,7.00401316]
[1765626188075,0.5,3121.0,3120.8,7.00401316]
[1765626188275,0.5,3121.0,3120.9,0.5954]
[1765626188475,0.79799217,3121.0,3120.9,0.5954]
[1765626188678,0.79799217,3121.0,3120.9,0.2977]
[1765626188875,0.79799217,3121.0,3120.9,0.5954]
[1765626189190,0.79799217,3121.0,3120.9,3.79960391]
[1765626191376,0.79799217,3121.0,3120.9,3.50190391]
[1765626191975,0.79799217,3121.0,3120.9,3.79960391]
[1765626192777,0.4985,3121.8,3120.9,7.70419887]
[1765626193106,0.29807784,3121.7,3121.0,0.8037]
[1765626193406,0.29807784,3121.6,3121.0,0.8037]
[1765626193608,0.29807784,3121.5,3121.1,0.4684]
[1765626193916,0.29807784,3121.4,3121.1,0.4684]
[1765626194066,0.29807784,3121.3,3121.2,3.20389593]
[1765626194266,0.4985,3121.7,3121.2,3.20389593]
[1765626194500,0.29800674,3121.6,3121.2,6.40779186]
[1765626194704,0.29800674,3121.5,3121.2,6.40779186]
[1765626195016,0.29800674,3121.4,3121.2,3.20389593]
[1765626195234,0.77010064,3121.3,3121.2,3.20389593]
[1765626195510,0.77010064,3121.3,3121.1,3.20397767]
[1765626195678,0.4985,3121.4,3121.1,6.40797626]
[1765626195877,0.4721,3121.2,3121.1,3.20397767]
[1765626196311,0.4721,3121.2,3121.0,3.20410124]
[1765626196503,0.4985,3121.4,3121.1,0.2977]
[1765626196702,0.29795221,3121.3,3121.1,0.2977]
[1765626196886,0.4985,3121.4,3121.1,0.2977]
[1765626197091,0.29795002,3121.3,3121.1,0.2977]
[1765626197292,0.4985,3121.4,3121.1,0.2977]
[1765626197515,0.29792032,3121.3,3121.0,6.40820248]
[1765626197814,0.4721,3121.1,3121.0,3.20410124]
[1765626198179,0.9706,3121.1,3120.9,3.20418376]
[1765626198503,0.4721,3121.0,3120.8,3.20430658]
[1765626198704,0.9706,3121.0,3120.8,3.20430658]
[1765626199506,0.4721,3120.9,3120.8,3.20430658]
[1765626204014,0.4985,3121.0,3120.8,3.20430658]
[1765626204717,3.70852226,3121.6,3120.8,3.20430658]
[1765626204917,0.4608,3121.2,3120.8,3.20430658]
[1765626205115,0.29812718,3121.1,3120.8,3.20430658]
[1765626205410,0.4608,3121.2,3120.8,3.20430658]
[1765626205613,0.2981894,3121.1,3120.8,3.20430658]
[1765626205917,0.4608,3121.2,3120.8,3.20430658]
[1765626206213,0.2981998,3121.1,3120.8,3.20430658]
[1765626206398,0.29825187,3121.0,3120.8,3.20430658]
[1765626206598,0.4608,3121.2,3120.8,3.20430658]
[1765626206815,0.4533,3120.9,3120.7,3.20435043]
[1765626207014,0.7515223,3120.8,3120.5,0.002]
[1765626207317,0.4533,3120.6,3120.5,0.002]
[1765626207491,0.7515223,3120.6,3120.5,0.002]
[1765626207810,1.2123223,3120.6,3120.5,0.002]
[1765626208591,1.65398577,3120.6,3120.5,0.002]
[1765626208809,1.2123223,3120.6,3120.5,0.002]
[1765626215632,0.4608,3120.5,3120.1,6.36203521]
[1765626217230,0.1864,3120.9,3120.4,0.2977]
[1765626217430,0.75886179,3120.8,3120.4,0.2977]
[1765626217635,0.29806179,3120.7,3120.4,0.2977]
[1765626217937,0.29806179,3120.6,3120.4,0.2977]
[1765626218139,0.29806179,3120.5,3120.4,0.2977]
[1765626219435,0.29806179,3120.5,3120.4,3.50241734]
[1765626219836,0.4608,3121.1,3120.4,7.00483468]
[1765626220016,0.29802702,3121.0,3120.8,0.2977]
[1765626220335,0.29802702,3120.9,3120.5,0.2977]
[1765626220535,0.29802702,3120.8,3120.4,3.20471734]
[1765626220759,0.29802702,3120.7,3120.4,3.20471734]
[1765626220936,0.29802702,3120.6,3120.4,3.20471734]
[1765626221129,0.6472,3120.8,3120.4,3.20471734]
[1765626221324,0.29801468,3120.7,3120.5,0.2977]
[1765626221530,0.29801468,3120.6,3120.5,3.50231464]
[1765626222532,0.29801468,3120.6,3120.5,3.80001464]
[1765626223430,0.29801468,3120.6,3120.5,4.50048784]
[1765626224236,0.29801468,3120.6,3120.5,3.80001464]
[1765626225352,0.96247471,3121.6,3120.5,14.22662705]
[1765626225651,0.29814482,3121.5,3120.6,0.2977]
[1765626225854,0.29814482,3121.4,3120.6,0.2977]
[1765626226019,0.29814482,3121.3,3120.6,0.2977]
[1765626226225,0.29814482,3121.2,3120.5,15.18901531]
[1765626226424,0.29814482,3121.1,3120.5,15.18901531]
[1765626226626,0.29814482,3121.0,3120.5,15.18901531]
[1765626226850,0.29814482,3120.9,3120.5,14.89131531]
[1765626227052,0.4608,3121.3,3120.6,0.2977]
[1765626227352,0.29818814,3121.2,3120.9,3.20420391]
[1765626227558,0.29818814,3121.1,3120.9,3.20420391]
[1765626227739,0.29818814,3121.0,3120.9,3.20420391]
[1765626230559,0.29818814,3121.0,3120.7,6.40881852]
[1765626230780,0.4608,3121.3,3120.9,0.2977]
[1765626230929,0.29828284,3121.2,3120.9,0.2977]
[1765626231129,0.29828284,3121.1,3120.9,0.2977]
[1765626231355,0.29828284,3121.0,3120.9,0.2977]
[1765626234178,0.29828284,3121.0,3120.9,3.50190391]
[1765626234347,0.75158284,3121.0,3120.9,3.20420391]
[1765626234545,1.22598284,3121.0,3120.8,3.20428165]
[1765626234744,0.29828284,3120.9,3120.8,3.20428165]
[1765626235871,1.24778284,3120.9,3120.8,3.20428165]
[1765626236070,1.43648284,3120.9,3120.6,6.40900164]
[1765626236252,0.4751,3120.7,3120.6,3.20448969]
[1765626236774,4.31508313,3121.5,3120.6,3.20448969]
[1765626236775,0.4744,3121.2,3120.6,3.79988969]
[1765626236956,0.2984145,3121.1,3120.7,0.2977]
[1765626237159,0.2984145,3121.0,3120.7,0.2977]
[1765626237369,0.2984145,3120.9,3120.7,0.2977]
[1765626237683,0.2984145,3120.8,3120.7,0.2977]
[1765626238477,0.2984145,3120.8,3120.7,3.50210926]
[1765626239473,0.7735145,3120.8,3120.7,3.20440926]
[1765626239687,1.2479145,3120.8,3120.6,3.2044976]
[1765626239880,0.7728145,3120.7,3120.6,3.2044976]
[1765626240081,1.2479145,3120.7,3120.6,3.2044976]
[1765626240577,1.2479145,3120.7,3120.4,3.20463958]
[1765626240781,0.2984145,3120.6,3120.4,6.40935692]
[1765626240969,0.9495,3120.7,3120.4,6.40935692]
[1765626241171,0.29838496,3120.6,3120.4,6.40935692]
[1765626241374,0.4744,3120.7,3120.4,6.40935692]
[1765626241683,0.29839871,3120.6,3120.4,6.40935692]
[1765626241877,0.4744,3120.7,3120.4,6.40935692]
[1765626242062,0.29839906,3120.6,3120.4,6.40935692]
[1765626242259,0.4744,3120.7,3120.4,6.40935692]
[1765626242580,0.29841291,3120.6,3120.4,6.40935692]
[1765626242776,0.4744,3120.7,3120.4,6.40935692]
[1765626242984,0.29841238,3120.6,3120.4,6.40935692]
[1765626243183,0.4744,3120.7,3120.4,6.40935692]
[1765626243363,0.2984287,3120.6,3120.4,6.40935692]
[1765626243566,0.4744,3120.7,3120.4,6.40935692]
[1765626243870,0.29842558,3120.6,3120.4,6.40935692]
[1765626244162,0.4744,3120.7,3120.4,6.40935692]
[1765626244364,0.29844432,3120.6,3120.4,6.40935692]
[1765626244564,0.4744,3120.7,3120.4,6.40935692]
[1765626244764,0.29844323,3120.6,3120.4,3.20463958]
[1765626244987,0.4744,3120.7,3120.4,3.20463958]
[1765626245283,0.29844225,3120.6,3120.4,3.20463958]
[1765626245490,0.4744,3120.7,3120.4,3.20463958]
[1765626245782,0.29846122,3120.6,3120.4,3.20463958]
[1765626245984,0.4744,3120.7,3120.4,3.20463958]
[1765626246187,0.29846124,3120.6,3120.4,3.20463958]
[1765626246369,0.4744,3120.7,3120.4,3.20463958]
[1765626246553,0.29848258,3120.6,3120.4,3.20463958]
[1765626246753,0.4744,3120.7,3120.4,3.20463958]
[1765626246977,0.29848258,3120.6,3120.4,3.20463958]
[1765626247186,0.4744,3120.7,3120.4,3.20463958]
[1765626247487,0.29850546,3120.6,3120.4,3.20463958]
[1765626247669,0.4744,3120.7,3120.4,3.20463958]
[1765626247986,0.29850553,3120.6,3120.4,3.20463958]
[1765626248291,0.29853076,3120.5,3120.4,3.20463958]
[1765626251389,1.24803076,3120.5,3119.6,4.31708313]
[1765626251574,1.24803076,3120.5,3119.9,3.20521192]
[1765626251575,0.77363076,3120.4,3119.9,3.20521192]
[1765626251779,0.29853076,3120.3,3119.9,3.20521192]
[1765626251968,0.4744,3120.3,3119.9,3.20521192]
[1765626252292,0.4744,3120.3,3120.1,3.20500149]
[1765626252788,0.4751,3120.2,3120.1,3.20500149]
[1765626253160,0.4751,3120.2,3119.8,6.41066734]
[1765626253359,0.4751,3120.2,3119.8,6.70836734]
[1765626253982,0.4751,3120.2,3119.8,6.41066734]
[1765626254192,0.4751,3120.2,3119.8,6.70836734]
[1765626254388,0.4751,3120.2,3119.9,0.506]
[1765626255492,0.4751,3120.2,3119.8,6.70836734]
[1765626255795,0.4751,3120.2,3119.9,0.506]
[1765626256499,0.4751,3120.2,3120.0,3.2051282]
[1765626257897,0.4751,3120.1,3120.0,3.2051282]
[1765626258075,0.9495,3120.1,3120.0,3.2051282]
[1765626258474,0.4751,3120.1,3120.0,3.2051282]
[1765626259871,1.24781016,3120.1,3119.6,0.002]
[1765626260075,0.4751,3119.7,3119.6,0.002]
[1765626260398,0.96276815,3120.6,3120.4,0.2977]
[1765626260597,0.29816494,3120.5,3120.4,0.2977]
[1765626260790,0.29816494,3120.5,3120.1,4.82263448]
[1765626260981,0.6631,3120.9,3120.4,0.2977]
[1765626261180,0.2981808,3120.8,3120.4,0.2977]
[1765626261383,0.2981808,3120.7,3120.5,0.2977]
[1765626261582,1.1375,3121.3,3120.5,0.8037]
[1765626261583,0.2981808,3120.6,3120.5,0.8037]
[1765626261983,0.2981808,3120.6,3120.5,4.30601464]
[1765626265202,0.2981808,3120.6,3120.5,8.62264912]
[1765626265382,1.05357529,3121.4,3120.5,7.51062928]
[1765626265585,0.29830416,3121.3,3120.6,0.2977]
[1765626265811,0.29830416,3121.2,3120.6,0.2977]
[1765626265977,0.29830416,3121.1,3120.6,0.2977]
[1765626266177,0.29830416,3121.0,3120.7,3.20440926]
[1765626266373,0.1979,3121.9,3120.9,4.31663448]
[1765626266592,0.29838145,3121.8,3121.3,0.2977]
[1765626266792,0.29838145,3121.7,3121.3,4.61433448]
[1765626267007,0.29838145,3121.6,3121.4,0.8037]
[1765626267179,0.29838145,3121.5,3121.4,0.506]
[1765626267507,0.001,3122.0,3121.9,0.2977]
[1765626267705,0.29926987,3122.0,3121.9,0.2977]
[1765626268110,0.29926987,3122.0,3121.9,3.50087755]
[1765626269905,0.001,3122.0,3121.9,3.79857755]
[1765626275186,0.9527,3122.0,3121.9,3.20317755]
[1765626277227,0.4796,3122.0,3121.9,3.20317755]
[1765626277622,0.001,3122.0,3121.9,3.50087755]
[1765626277825,0.001,3122.0,3121.9,3.79857755]
[1765626278995,0.001,3122.0,3121.9,3.20317755]
[1765626278996,0.4796,3122.0,3121.9,3.20317755]
[1765626279322,0.9527,3122.0,3121.9,3.20317755]
[1765626280424,0.4796,3122.0,3121.9,3.20317755]
[1765626280811,0.9527,3122.0,3121.8,3.20323622]
[1765626281019,0.4786,3121.9,3121.8,3.20323622]
[1765626281219,0.9517,3121.9,3121.8,3.20323622]
[1765626281931,1.1497,3121.9,3121.8,3.20323622]
[1765626282934,1.1497,3121.9,3121.7,3.20328321]
[1765626283141,0.4786,3121.8,3121.7,3.20328321]
[1765626284847,0.6711,3121.9,3121.7,3.20328321]
[1765626285054,0.4786,3121.8,3121.6,3.70944079]
[1765626285346,0.4786,3121.7,3121.6,3.70944079]
[1765626285547,0.4786,3121.7,3121.6,3.20344079]
[1765626285756,0.9517,3121.7,3121.6,3.20344079]
[1765626286450,0.9517,3121.7,3121.5,3.20355454]
[1765626286615,0.4731,3121.6,3121.5,3.20355454]
[1765626286817,0.9517,3121.6,3121.5,3.20355454]
[1765626287123,0.9517,3121.6,3121.4,3.20369065]
[1765626293955,0.9517,3121.5,3121.4,3.20369065]
[1765626294355,0.4786,3121.5,3121.4,3.20369065]
[1765626294934,0.9431,3121.5,3121.3,3.70974719]
[1765626295133,0.4629,3121.4,3121.3,3.70974719]
[1765626295339,0.9274,3121.4,3121.3,3.70974719]
[1765626295536,0.4629,3121.4,3121.3,3.70974719]
[1765626296335,0.76131392,3121.4,3121.3,3.70974719]
[1765626300376,1.22581392,3121.4,3121.3,3.70974719]
[1765626300879,1.22581392,3121.4,3121.3,0.506]
[1765626301263,1.22581392,3121.4,3120.9,3.88]
[1765626301441,0.4629,3121.0,3120.4,3.88]
[1765626301776,0.29824829,3120.9,3120.8,3.20430658]
[1765626302134,1.22564829,3120.9,3120.8,3.20430658]
[1765626302370,0.9274,3120.9,3120.8,3.20430658]
[1765626302669,1.2255044,3120.9,3120.8,3.20430658]
[1765626302870,0.7610044,3120.9,3120.5,6.40922928]
[1765626303069,0.4629,3120.9,3120.5,6.40922928]
[1765626303235,0.9274,3120.9,3120.5,6.40922928]
[1765626303441,1.1163,3120.9,3120.5,6.40922928]
[1765626303635,0.4645,3120.8,3120.5,6.40922928]
[1765626304672,0.4629,3120.6,3120.5,3.20461464]
[1765626305252,0.9274,3120.6,3120.5,3.20461464]
[1765626305966,0.1889,3120.9,3120.5,3.50231464]
[1765626306143,0.4645,3121.0,3120.5,6.70692928]
[1765626306338,0.29774201,3120.9,3120.5,7.00462928]
[1765626306535,0.4645,3121.0,3120.5,7.00462928]
[1765626306736,0.29777366,3120.9,3120.5,7.00462928]
[1765626306964,0.4645,3121.0,3120.5,7.00462928]
[1765626307168,0.29777377,3120.9,3120.5,7.00462928]
[1765626307375,0.4645,3121.0,3120.5,7.00462928]
[1765626307576,0.2977065,3120.9,3120.5,7.00462928]
[1765626307776,0.4645,3121.0,3120.5,7.00462928]
[1765626307976,0.2977065,3120.9,3120.5,7.00462928]
[1765626308173,0.4645,3121.0,3120.5,7.00462928]
[1765626308383,0.29766362,3120.9,3120.5,6.70692928]
[1765626308580,0.4645,3121.0,3120.5,6.70692928]
[1765626308761,0.29766361,3120.9,3120.5,6.70692928]
[1765626308960,0.4645,3121.0,3120.5,6.70692928]
[1765626309283,0.29766354,3120.9,3120.5,6.70692928]
[1765626309574,0.4645,3121.0,3120.5,6.70692928]
[1765626309872,0.29763324,3120.9,3120.5,6.70692928]
[1765626310072,0.4645,3121.0,3120.5,6.70692928]
[1765626310279,0.29763304,3120.9,3120.5,6.70692928]
[1765626310478,0.4645,3121.0,3120.5,6.70692928]
[1765626310770,3.20389681,3121.2,3120.5,6.70692928]
[1765626310771,0.4629,3120.6,3120.5,3.20461464]
[1765626312481,0.9274,3120.6,3120.5,3.20461464]
[1765626314089,0.4629,3120.6,3120.5,3.20461464]
[1765626314778,0.9274,3120.6,3120.5,3.20461464]
[1765626315083,0.4629,3120.6,3120.5,3.20461464]
[1765626315291,0.9274,3120.6,3120.5,3.20461464]
[1765626315475,0.4629,3120.6,3120.5,3.20461464]
[1765626315785,0.6534,3120.9,3120.5,3.50231464]
[1765626315955,0.4645,3121.1,3120.5,3.50231464]
[1765626316153,0.29766879,3121.0,3120.5,3.80001464]
[1765626316352,0.29766879,3120.9,3120.5,7.00462928]
[1765626316553,0.4645,3121.0,3120.5,7.00462928]
[1765626316787,0.29766948,3120.9,3120.5,6.70692928]
[1765626317084,0.4645,3121.0,3120.5,6.70692928]
[1765626317256,0.29766991,3120.9,3120.6,0.2977]
[1765626317453,0.4645,3121.0,3120.6,0.2977]
[1765626317659,0.29767458,3120.9,3120.5,6.40922928]
[1765626317856,0.4645,3121.0,3120.5,6.40922928]
[1765626318090,0.2976745,3120.9,3120.5,6.40922928]
[1765626318290,0.4645,3121.0,3120.5,6.70692928]
[1765626318593,0.29768665,3120.9,3120.5,6.70692928]
[1765626318890,0.4645,3121.2,3120.6,0.2977]
[1765626319091,0.29768876,3121.1,3120.6,0.2977]
[1765626319285,0.29768876,3121.0,3120.6,0.2977]
[1765626319471,0.29768876,3120.9,3120.6,0.2977]
[1765626319669,0.4645,3121.2,3120.6,0.2977]
[1765626319871,0.29771217,3121.1,3120.7,6.40881852]
[1765626320070,0.29771217,3121.0,3120.7,6.40881852]
[1765626320295,0.29771217,3120.9,3120.7,6.40881852]
[1765626320489,0.4645,3121.2,3120.7,6.40881852]
[1765626320795,0.29775125,3121.1,3120.7,6.40881852]
[1765626320994,0.29775125,3121.0,3120.7,6.70651852]
[1765626321196,0.29775125,3120.9,3120.7,6.70651852]
[1765626321397,0.4645,3121.2,3120.7,6.70651852]
[1765626321576,0.29780046,3121.1,3120.7,6.70651852]
[1765626321778,0.29780046,3121.0,3120.7,3.50210926]
[1765626321982,0.29780046,3120.9,3120.7,3.50210926]
[1765626322291,0.29784956,3120.8,3120.7,3.50210926]
[1765626322677,0.29787907,3121.1,3120.7,4.47047143]
[1765626322980,0.29787907,3121.0,3120.8,0.8037]
[1765626323296,0.58047529,3121.5,3120.8,0.8037]
[1765626323297,0.29794939,3120.9,3120.8,0.8037]
[1765626323679,0.29794939,3120.9,3120.8,4.00800658]
[1765626323878,3.78406627,3121.5,3120.8,7.51001316]
[1765626323879,0.4539,3121.4,3120.8,7.51001316]